[Event "*** Titled Tuesday Blitz"]
[Site "Chess.com"]
[Date "2020.10.27"]
[Round "9"]
[White "InitiatingASC"]
[Black "Ranindu2003"]
[Result "0-1"]
[WhiteElo "2407"]
[BlackElo "2550"]
[TimeControl "180+1"]
[EndTime "11:46:14 PDT"]
[Termination "Ranindu2003 won on time"]

1. d4 {[%clk 0:02:47.8]} 1... Nf6 {[%clk 0:02:58.6]} 2. c4 {[%clk 0:02:46.9]}
2... e6 {[%clk 0:02:58.9]} 3. Nc3 {[%clk 0:02:43.5]} 3... Bb4 {[%clk 0:02:58.7]}
4. e3 {[%clk 0:01:58.3]} 4... O-O {[%clk 0:02:57.7]} 5. Bd3 {[%clk 0:01:43.2]}
5... c5 {[%clk 0:02:55.6]} 6. Ne2 {[%clk 0:01:41.8]} 6... d5 {[%clk 0:02:55.8]}
7. O-O {[%clk 0:01:41.4]} 7... cxd4 {[%clk 0:02:55.1]} 8. exd4 {[%clk
0:01:39.8]} 8... dxc4 {[%clk 0:02:55.3]} 9. Bxc4 {[%clk 0:01:39.8]} 9... b6
{[%clk 0:02:55.3]} 10. a3 {[%clk 0:01:38.9]} 10... Be7 {[%clk 0:02:53]} 11. Be3
{[%clk 0:01:35.5]} 11... Bb7 {[%clk 0:02:52.9]} 12. Qd2 {[%clk 0:01:35.7]} 12...
Nbd7 {[%clk 0:02:51.5]} 13. Rad1 {[%clk 0:01:33.8]} 13... Rc8 {[%clk 0:02:49.8]}
14. Ba2 {[%clk 0:01:34.3]} 14... Bd6 {[%clk 0:02:38.8]} 15. d5 {[%clk
0:01:32.4]} 15... exd5 {[%clk 0:02:19.9]} 16. Nxd5 {[%clk 0:01:30.8]} 16... Be5
{[%clk 0:02:16.2]} 17. Nec3 {[%clk 0:01:11.6]} 17... Nc5 {[%clk 0:02:08.6]} 18.
Bg5 {[%clk 0:01:06.6]} 18... Bxd5 {[%clk 0:01:36.7]} 19. Nxd5 {[%clk 0:01:03.6]}
19... Nce4 {[%clk 0:01:33.7]} 20. Nxf6+ {[%clk 0:00:58.8]} 20... Nxf6 {[%clk
0:01:19.8]} 21. Qe2 {[%clk 0:00:49.5]} 21... Qc7 {[%clk 0:01:18.8]} 22. f4
{[%clk 0:00:45.1]} 22... Qc5+ {[%clk 0:01:13.4]} 23. Kh1 {[%clk 0:00:43]} 23...
Bd4 {[%clk 0:01:12.9]} 24. Rf3 {[%clk 0:00:29.7]} 24... Rfe8 {[%clk 0:01:09.4]}
25. Qd3 {[%clk 0:00:28.1]} 25... Ng4 {[%clk 0:01:05]} 26. Bh4 {[%clk 0:00:20.5]}
26... Bf6 {[%clk 0:00:50.6]} 27. Bg3 {[%clk 0:00:14]} 27... Rcd8 {[%clk
0:00:47.4]} 28. Qb3 {[%clk 0:00:11.5]} 28... Rxd1+ {[%clk 0:00:45.9]} 29. Qxd1
{[%clk 0:00:12.4]} 29... Bxb2 {[%clk 0:00:40.5]} 30. Rf1 {[%clk 0:00:09.6]}
30... Nf6 {[%clk 0:00:37.5]} 31. Qb3 {[%clk 0:00:10]} 31... Qxa3 {[%clk
0:00:20.4]} 32. Qxf7+ {[%clk 0:00:09.5]} 32... Kh8 {[%clk 0:00:21.1]} 33. Bh4
{[%clk 0:00:09.6]} 33... Qf8 {[%clk 0:00:21.2]} 34. Bxf6 {[%clk 0:00:08.2]}
34... Bxf6 {[%clk 0:00:19]} 35. Qxf8+ {[%clk 0:00:04.6]} 35... Rxf8 {[%clk
0:00:19.9]} 36. g4 {[%clk 0:00:04.4]} 36... Rd8 {[%clk 0:00:19.2]} 37. Rf2
{[%clk 0:00:04.1]} 37... h6 {[%clk 0:00:16.6]} 38. Bc4 {[%clk 0:00:03.5]} 38...
Rc8 {[%clk 0:00:14.4]} 39. Bd3 {[%clk 0:00:03.4]} 39... Bd4 {[%clk 0:00:14.1]}
40. Ra2 {[%clk 0:00:03.1]} 40... a5 {[%clk 0:00:14.1]} 41. Kg2 {[%clk
0:00:03.1]} 41... Rc3 {[%clk 0:00:12.9]} 42. Be2 {[%clk 0:00:01.9]} 42... Bc5
{[%clk 0:00:12.3]} 43. f5 {[%clk 0:00:02]} 43... Rb3 {[%clk 0:00:11.2]} 44. Rd2
{[%clk 0:00:01.1]} 44... Re3 {[%clk 0:00:06.9]} 0-1

[Event "*** Titled Tuesday Blitz"]
[Site "Chess.com"]
[Date "2020.10.27"]
[Round "9"]
[White "kidagent"]
[Black "ShahMatKanal"]
[Result "0-1"]
[WhiteElo "2296"]
[BlackElo "2452"]
[TimeControl "180+1"]
[EndTime "11:46:15 PDT"]
[Termination "ShahMatKanal won by checkmate"]

1. e4 {[%clk 0:03:00.9]} 1... c5 {[%clk 0:03:00.2]} 2. Nf3 {[%clk 0:03:00.7]}
2... Nc6 {[%clk 0:03:00.6]} 3. d4 {[%clk 0:03:01]} 3... cxd4 {[%clk 0:03:01.5]}
4. Nxd4 {[%clk 0:03:01.5]} 4... e5 {[%clk 0:03:02.1]} 5. Nb5 {[%clk 0:03:01.8]}
5... a6 {[%clk 0:03:02.5]} 6. Nd6+ {[%clk 0:03:00.7]} 6... Bxd6 {[%clk
0:03:02.9]} 7. Qxd6 {[%clk 0:03:00.8]} 7... Qf6 {[%clk 0:03:03.8]} 8. Qa3 {[%clk
0:03:00.1]} 8... Qg6 {[%clk 0:02:56.7]} 9. Nc3 {[%clk 0:02:53.4]} 9... Nge7
{[%clk 0:02:45.7]} 10. Be3 {[%clk 0:02:48.6]} 10... d5 {[%clk 0:02:32.1]} 11.
exd5 {[%clk 0:02:32.5]} 11... Nd4 {[%clk 0:02:17.3]} 12. Bxd4 {[%clk 0:02:17.7]}
12... exd4 {[%clk 0:02:17.2]} 13. Qa4+ {[%clk 0:02:17.4]} 13... b5 {[%clk
0:02:09.7]} 14. Qxd4 {[%clk 0:02:17.7]} 14... O-O {[%clk 0:01:31.2]} 15. O-O-O
{[%clk 0:02:14]} 15... Bf5 {[%clk 0:01:25.4]} 16. Bd3 {[%clk 0:02:08.8]} 16...
Bxd3 {[%clk 0:01:01.3]} 17. Qxd3 {[%clk 0:02:06.3]} 17... Qxg2 {[%clk
0:00:59.9]} 18. d6 {[%clk 0:01:53.3]} 18... Ng6 {[%clk 0:00:45.2]} 19. Qg3
{[%clk 0:01:38.2]} 19... Qc6 {[%clk 0:00:41.4]} 20. Nd5 {[%clk 0:01:32.1]} 20...
Rac8 {[%clk 0:00:39.9]} 21. c3 {[%clk 0:01:30.7]} 21... f5 {[%clk 0:00:36.1]}
22. Rhe1 {[%clk 0:01:21.7]} 22... f4 {[%clk 0:00:34.3]} 23. Qxg6 {[%clk
0:01:11.7]} 23... hxg6 {[%clk 0:00:29.6]} 24. Ne7+ {[%clk 0:01:10.8]} 24... Kf7
{[%clk 0:00:29]} 25. Nxc6 {[%clk 0:01:11.7]} 25... Rxc6 {[%clk 0:00:29.6]} 26.
Rd4 {[%clk 0:00:53.6]} 26... g5 {[%clk 0:00:29]} 27. Rd5 {[%clk 0:00:45.1]}
27... Rd8 {[%clk 0:00:23.4]} 28. Re7+ {[%clk 0:00:41]} 28... Kf6 {[%clk
0:00:22.5]} 29. Ra7 {[%clk 0:00:33.4]} 29... Rdxd6 {[%clk 0:00:21.4]} 30. Rxd6+
{[%clk 0:00:28.2]} 30... Rxd6 {[%clk 0:00:22.3]} 31. Rb7 {[%clk 0:00:18.8]}
31... g4 {[%clk 0:00:21.7]} 32. Rb8 {[%clk 0:00:17.4]} 32... f3 {[%clk
0:00:21.2]} 33. Rh8 {[%clk 0:00:17]} 33... g6 {[%clk 0:00:19.4]} 34. Kc2 {[%clk
0:00:17.4]} 34... Kg5 {[%clk 0:00:18]} 35. b3 {[%clk 0:00:17.7]} 35... Re6
{[%clk 0:00:18.1]} 36. Kd3 {[%clk 0:00:17.4]} 36... Re2 {[%clk 0:00:17.8]} 37.
h3 {[%clk 0:00:16.8]} 37... Rxf2 {[%clk 0:00:16.1]} 38. hxg4 {[%clk 0:00:17.1]}
38... Kxg4 {[%clk 0:00:17]} 39. Ke3 {[%clk 0:00:17.2]} 39... Re2+ {[%clk
0:00:17]} 40. Kd3 {[%clk 0:00:17.7]} 40... Rxa2 {[%clk 0:00:17.9]} 41. Rf8
{[%clk 0:00:17.6]} 41... g5 {[%clk 0:00:17.7]} 42. c4 {[%clk 0:00:17.9]} 42...
bxc4+ {[%clk 0:00:17.3]} 43. Kxc4 {[%clk 0:00:18.3]} 43... Kg3 {[%clk
0:00:15.6]} 44. Kc3 {[%clk 0:00:18]} 44... f2 {[%clk 0:00:15.2]} 45. Rf5 {[%clk
0:00:17.7]} 45... g4 {[%clk 0:00:15.1]} 46. Kb4 {[%clk 0:00:18.6]} 46... a5+
{[%clk 0:00:14.4]} 47. Kb5 {[%clk 0:00:18.5]} 47... Ra3 {[%clk 0:00:13.5]} 48.
Kc4 {[%clk 0:00:18.2]} 48... a4 {[%clk 0:00:13.4]} 49. b4 {[%clk 0:00:17.8]}
49... Rf3 {[%clk 0:00:14.3]} 50. Rxf3+ {[%clk 0:00:17]} 50... gxf3 {[%clk
0:00:14.6]} 51. b5 {[%clk 0:00:17.9]} 51... f1=Q+ {[%clk 0:00:15.5]} 52. Kb4
{[%clk 0:00:18.2]} 52... Qa1 {[%clk 0:00:15.5]} 53. b6 {[%clk 0:00:17.9]} 53...
a3 {[%clk 0:00:15.9]} 54. Ka5 {[%clk 0:00:18.5]} 54... Qb2 {[%clk 0:00:15.9]}
55. b7 {[%clk 0:00:19.4]} 55... a2 {[%clk 0:00:16.1]} 56. b8=Q+ {[%clk
0:00:18.6]} 56... Qxb8 {[%clk 0:00:16]} 57. Ka6 {[%clk 0:00:19.5]} 57... f2
{[%clk 0:00:15.6]} 58. Ka5 {[%clk 0:00:19.3]} 58... f1=Q {[%clk 0:00:15.4]} 59.
Ka4 {[%clk 0:00:19.6]} 59... Qc4+ {[%clk 0:00:13.4]} 60. Ka3 {[%clk 0:00:19.8]}
60... a1=Q# {[%clk 0:00:13.2]} 0-1

[Event "*** Titled Tuesday Blitz"]
[Site "Chess.com"]
[Date "2020.10.27"]
[Round "9"]
[White "Triumphmate"]
[Black "xberli"]
[Result "0-1"]
[WhiteElo "2399"]
[BlackElo "2537"]
[TimeControl "180+1"]
[EndTime "11:46:21 PDT"]
[Termination "xberli won by resignation"]

1. e4 {[%clk 0:03:00.9]} 1... c5 {[%clk 0:02:59.2]} 2. Nf3 {[%clk 0:02:56.4]}
2... d6 {[%clk 0:02:59]} 3. d4 {[%clk 0:02:56.3]} 3... cxd4 {[%clk 0:02:59.9]}
4. Nxd4 {[%clk 0:02:56.8]} 4... Nf6 {[%clk 0:02:59.6]} 5. Nc3 {[%clk 0:02:57.3]}
5... a6 {[%clk 0:03:00.1]} 6. f4 {[%clk 0:02:57.7]} 6... e5 {[%clk 0:02:59.1]}
7. Nf3 {[%clk 0:02:58.1]} 7... Nbd7 {[%clk 0:02:55.9]} 8. Bd3 {[%clk 0:02:59]}
8... Be7 {[%clk 0:02:54.6]} 9. O-O {[%clk 0:02:59.9]} 9... O-O {[%clk
0:02:53.7]} 10. Kh1 {[%clk 0:02:59.9]} 10... Nc5 {[%clk 0:02:51.9]} 11. Qe1
{[%clk 0:02:59.2]} 11... exf4 {[%clk 0:02:48]} 12. Bxf4 {[%clk 0:02:57.3]} 12...
Bg4 {[%clk 0:02:41]} 13. Qg3 {[%clk 0:02:54.8]} 13... Bh5 {[%clk 0:02:32.5]} 14.
Rae1 {[%clk 0:02:51.6]} 14... Bg6 {[%clk 0:02:31.3]} 15. Qh3 {[%clk 0:02:41.4]}
15... Ne6 {[%clk 0:02:23.8]} 16. Be3 {[%clk 0:02:35]} 16... Rc8 {[%clk
0:02:14.8]} 17. Nh4 {[%clk 0:02:34.3]} 17... b5 {[%clk 0:02:04.6]} 18. a3 {[%clk
0:02:33.1]} 18... Nd7 {[%clk 0:01:39.7]} 19. Nf5 {[%clk 0:02:31.1]} 19... Ne5
{[%clk 0:01:34.9]} 20. Nd5 {[%clk 0:02:28.3]} 20... Bg5 {[%clk 0:01:24.3]} 21.
Bxg5 {[%clk 0:02:11.6]} 21... Nxg5 {[%clk 0:01:15.6]} 22. Nfe7+ {[%clk
0:02:01.4]} 22... Kh8 {[%clk 0:01:14.6]} 23. Qg3 {[%clk 0:01:48.1]} 23... Ne6
{[%clk 0:01:09]} 24. Nxc8 {[%clk 0:01:48.3]} 24... Qxc8 {[%clk 0:01:07.7]} 25.
h4 {[%clk 0:01:45.4]} 25... Qd8 {[%clk 0:01:02.7]} 26. Ne3 {[%clk 0:01:33.5]}
26... Nc5 {[%clk 0:00:57.6]} 27. Nf5 {[%clk 0:01:31.8]} 27... Bxf5 {[%clk
0:00:55.4]} 28. Rxf5 {[%clk 0:01:30.7]} 28... Qe7 {[%clk 0:00:50.7]} 29. Ref1
{[%clk 0:01:29.2]} 29... Ne6 {[%clk 0:00:42.6]} 30. h5 {[%clk 0:01:23.5]} 30...
f6 {[%clk 0:00:39.9]} 31. c3 {[%clk 0:01:21.1]} 31... Nc5 {[%clk 0:00:36]} 32.
Bc2 {[%clk 0:01:20.8]} 32... Nc4 {[%clk 0:00:34.2]} 33. Qh4 {[%clk 0:01:08.2]}
33... h6 {[%clk 0:00:29.7]} 34. b4 {[%clk 0:01:04]} 34... Nd7 {[%clk 0:00:26.6]}
35. a4 {[%clk 0:01:03.2]} 35... Ne3 {[%clk 0:00:23]} 36. axb5 {[%clk 0:01:00]}
36... axb5 {[%clk 0:00:21.3]} 37. Bd3 {[%clk 0:00:53.4]} 37... Nxf5 {[%clk
0:00:17.8]} 38. Rxf5 {[%clk 0:00:52.5]} 38... Ne5 {[%clk 0:00:17.8]} 39. Bxb5
{[%clk 0:00:49.2]} 39... Rc8 {[%clk 0:00:16.4]} 40. Qg3 {[%clk 0:00:49.2]} 40...
Qb7 {[%clk 0:00:15.2]} 41. c4 {[%clk 0:00:39.4]} 41... Qxe4 {[%clk 0:00:14.6]}
42. Rf4 {[%clk 0:00:37.8]} 42... Qb1+ {[%clk 0:00:13.3]} 43. Kh2 {[%clk
0:00:38.2]} 43... Qxb4 {[%clk 0:00:13.6]} 44. Ba6 {[%clk 0:00:22]} 44... Ra8
{[%clk 0:00:12.5]} 45. Bb5 {[%clk 0:00:20.6]} 45... Ra3 {[%clk 0:00:11.9]} 46.
Qh4 {[%clk 0:00:18.2]} 46... Qc5 {[%clk 0:00:11.3]} 47. Be8 {[%clk 0:00:13.5]}
47... Ra1 {[%clk 0:00:10.7]} 48. Rxf6 {[%clk 0:00:12.9]} 48... Qg1+ {[%clk
0:00:10.4]} 49. Kg3 {[%clk 0:00:12.6]} 49... Qe1+ {[%clk 0:00:10.4]} 50. Kh3
{[%clk 0:00:12.1]} 50... Qxh4+ {[%clk 0:00:10]} 51. Kxh4 {[%clk 0:00:12.6]}
51... gxf6 {[%clk 0:00:10.9]} 52. g3 {[%clk 0:00:11.8]} 52... Kg7 {[%clk
0:00:10.5]} 53. Kh3 {[%clk 0:00:12.4]} 53... Rc1 {[%clk 0:00:10.5]} 54. Bb5
{[%clk 0:00:12]} 54... Rc3 {[%clk 0:00:11.4]} 55. Kg2 {[%clk 0:00:12.2]} 55...
Nxc4 {[%clk 0:00:11.3]} 56. Bd7 {[%clk 0:00:11.7]} 56... Ne5 {[%clk 0:00:11.3]}
57. g4 {[%clk 0:00:12.6]} 57... Nxd7 {[%clk 0:00:11]} 0-1

[Event "*** Titled Tuesday Blitz"]
[Site "Chess.com"]
[Date "2020.10.27"]
[Round "9"]
[White "Vandros57"]
[Black "ChronicUnhappiness"]
[Result "0-1"]
[WhiteElo "2212"]
[BlackElo "2376"]
[TimeControl "180+1"]
[EndTime "11:46:24 PDT"]
[Termination "ChronicUnhappiness won on time"]

1. d4 {[%clk 0:03:00.9]} 1... Nf6 {[%clk 0:02:57.9]} 2. Nf3 {[%clk 0:02:59.7]}
2... e6 {[%clk 0:02:58]} 3. c4 {[%clk 0:02:58.9]} 3... b6 {[%clk 0:02:55]} 4. g3
{[%clk 0:02:57.6]} 4... Ba6 {[%clk 0:02:54.6]} 5. Qc2 {[%clk 0:02:53.3]} 5... c5
{[%clk 0:02:52]} 6. Bg2 {[%clk 0:02:51.2]} 6... Bb7 {[%clk 0:02:51.9]} 7. O-O
{[%clk 0:02:49.6]} 7... cxd4 {[%clk 0:02:43.6]} 8. Nxd4 {[%clk 0:02:48.8]} 8...
Bxg2 {[%clk 0:02:44]} 9. Kxg2 {[%clk 0:02:48.2]} 9... Bc5 {[%clk 0:02:43.2]} 10.
Nf3 {[%clk 0:02:42.5]} 10... O-O {[%clk 0:02:41.7]} 11. e3 {[%clk 0:02:39.3]}
11... Nc6 {[%clk 0:02:40.7]} 12. a3 {[%clk 0:02:35.9]} 12... Rc8 {[%clk
0:02:39.5]} 13. b4 {[%clk 0:02:34.2]} 13... Be7 {[%clk 0:02:38.3]} 14. Rd1
{[%clk 0:02:32.3]} 14... d5 {[%clk 0:02:37.5]} 15. cxd5 {[%clk 0:02:28.4]} 15...
Nxb4 {[%clk 0:02:32.5]} 16. Qd2 {[%clk 0:02:17.9]} 16... Nbxd5 {[%clk
0:02:25.5]} 17. Bb2 {[%clk 0:02:11.1]} 17... Ne4 {[%clk 0:02:09.6]} 18. Qd3
{[%clk 0:02:05.5]} 18... f5 {[%clk 0:02:05.1]} 19. Nbd2 {[%clk 0:01:50.7]} 19...
Nec3 {[%clk 0:01:57.4]} 20. Rdc1 {[%clk 0:01:42.8]} 20... Bf6 {[%clk 0:01:52.9]}
21. Nd4 {[%clk 0:01:40.4]} 21... Bxd4 {[%clk 0:01:03.3]} 22. Qxd4 {[%clk
0:01:32.9]} 22... Qf6 {[%clk 0:01:01.5]} 23. Nb3 {[%clk 0:01:15.6]} 23... Qxd4
{[%clk 0:00:57.1]} 24. Nxd4 {[%clk 0:01:14.2]} 24... Kf7 {[%clk 0:00:55.8]} 25.
Bxc3 {[%clk 0:01:10.3]} 25... Nxc3 {[%clk 0:00:52.8]} 26. a4 {[%clk 0:01:08.6]}
26... g6 {[%clk 0:00:46]} 27. Nb5 {[%clk 0:01:05.5]} 27... Nxb5 {[%clk
0:00:43.5]} 28. axb5 {[%clk 0:01:04.7]} 28... Rxc1 {[%clk 0:00:44.4]} 29. Rxc1
{[%clk 0:01:03.4]} 29... Re8 {[%clk 0:00:44.5]} 30. f4 {[%clk 0:00:57.5]} 30...
Re7 {[%clk 0:00:41.5]} 31. Rc6 {[%clk 0:00:55.2]} 31... e5 {[%clk 0:00:40.4]}
32. Kf3 {[%clk 0:00:51.9]} 32... e4+ {[%clk 0:00:39.4]} 33. Ke2 {[%clk
0:00:50.9]} 33... Rd7 {[%clk 0:00:40.1]} 34. Rc8 {[%clk 0:00:46.6]} 34... Ke7
{[%clk 0:00:39.6]} 35. Ra8 {[%clk 0:00:40.1]} 35... Kd6 {[%clk 0:00:39.2]} 36.
Rc8 {[%clk 0:00:37.9]} 36... Rc7 {[%clk 0:00:38.4]} 37. Re8 {[%clk 0:00:33.8]}
37... Rc2+ {[%clk 0:00:35.1]} 38. Kf1 {[%clk 0:00:28.3]} 38... Rxh2 {[%clk
0:00:34.4]} 39. g4 {[%clk 0:00:22.2]} 39... Rc2 {[%clk 0:00:23.3]} 40. gxf5
{[%clk 0:00:20.9]} 40... gxf5 {[%clk 0:00:23]} 41. Rh8 {[%clk 0:00:15.2]} 41...
Rc5 {[%clk 0:00:18.3]} 42. Rxh7 {[%clk 0:00:14.5]} 42... Rxb5 {[%clk 0:00:18.7]}
43. Rxa7 {[%clk 0:00:14.3]} 43... Kc5 {[%clk 0:00:16.1]} 44. Kf2 {[%clk
0:00:13.4]} 44... Kb4 {[%clk 0:00:15.9]} 45. Rf7 {[%clk 0:00:11.8]} 45... Rc5
{[%clk 0:00:15.6]} 46. Kg3 {[%clk 0:00:11.1]} 46... b5 {[%clk 0:00:15.9]} 47.
Kh4 {[%clk 0:00:11.1]} 47... Kc3 {[%clk 0:00:16.2]} 48. Kg5 {[%clk 0:00:10.9]}
48... b4 {[%clk 0:00:16.7]} 49. Rb7 {[%clk 0:00:10.6]} 49... b3 {[%clk
0:00:16.5]} 50. Kf6 {[%clk 0:00:10.4]} 50... b2 {[%clk 0:00:16.6]} 51. Ke6
{[%clk 0:00:08.8]} 51... Rc4 {[%clk 0:00:12.1]} 52. Kxf5 {[%clk 0:00:07.8]}
52... Rb4 {[%clk 0:00:10.9]} 53. Rc7+ {[%clk 0:00:07.8]} 53... Kd2 {[%clk
0:00:10.9]} 54. Rd7+ {[%clk 0:00:06.7]} 54... Ke2 {[%clk 0:00:10.9]} 0-1

[Event "*** Titled Tuesday Blitz"]
[Site "Chess.com"]
[Date "2020.10.27"]
[Round "9"]
[White "shineatchess"]
[Black "kai_nov"]
[Result "0-1"]
[WhiteElo "2182"]
[BlackElo "2294"]
[TimeControl "180+1"]
[EndTime "11:46:31 PDT"]
[Termination "kai_nov won by resignation"]

1. e4 {[%clk 0:03:00.9]} 1... c5 {[%clk 0:02:54.9]} 2. Nf3 {[%clk 0:03:00.5]}
2... Nc6 {[%clk 0:02:54.8]} 3. Bb5 {[%clk 0:03:00.2]} 3... e5 {[%clk 0:02:53.5]}
4. Bxc6 {[%clk 0:02:41.7]} 4... dxc6 {[%clk 0:02:52.8]} 5. O-O {[%clk
0:02:37.5]} 5... f6 {[%clk 0:02:49]} 6. Nxe5 {[%clk 0:02:19.5]} 6... fxe5 {[%clk
0:02:45.5]} 7. Qh5+ {[%clk 0:02:19.1]} 7... Kd7 {[%clk 0:02:44.2]} 8. Qxe5
{[%clk 0:02:14.4]} 8... Qf6 {[%clk 0:02:41.6]} 9. Qg3 {[%clk 0:02:08.2]} 9...
Qg6 {[%clk 0:02:32]} 10. Qd3+ {[%clk 0:01:43.3]} 10... Kc7 {[%clk 0:02:30.2]}
11. f4 {[%clk 0:01:43.4]} 11... Nf6 {[%clk 0:02:17.9]} 12. f5 {[%clk 0:01:39]}
12... Qg4 {[%clk 0:02:08.9]} 13. Nc3 {[%clk 0:01:38.2]} 13... Bd6 {[%clk
0:02:04.9]} 14. Qe3 {[%clk 0:01:24.6]} 14... Re8 {[%clk 0:02:01.5]} 15. d3
{[%clk 0:01:18.3]} 15... Bd7 {[%clk 0:01:26.4]} 16. Qf2 {[%clk 0:01:17.4]} 16...
b6 {[%clk 0:01:13.4]} 17. Ne2 {[%clk 0:01:16]} 17... c4 {[%clk 0:00:55.1]} 18.
Bf4 {[%clk 0:01:11.3]} 18... Bxf4 {[%clk 0:00:52.2]} 19. Nxf4 {[%clk 0:01:10.5]}
19... Rad8 {[%clk 0:00:46.7]} 20. Rae1 {[%clk 0:00:46.2]} 20... cxd3 {[%clk
0:00:36.1]} 21. cxd3 {[%clk 0:00:45.8]} 21... Kb7 {[%clk 0:00:35.1]} 22. e5
{[%clk 0:00:43.7]} 22... Nd5 {[%clk 0:00:31.5]} 23. Nxd5 {[%clk 0:00:36.9]}
23... cxd5 {[%clk 0:00:31.4]} 24. d4 {[%clk 0:00:36.9]} 24... Bb5 {[%clk
0:00:29.7]} 25. Qf4 {[%clk 0:00:23.5]} 25... Qxf4 {[%clk 0:00:29.3]} 26. Rxf4
{[%clk 0:00:23.3]} 26... Bd3 {[%clk 0:00:28.6]} 27. Re3 {[%clk 0:00:20.1]} 27...
Be4 {[%clk 0:00:28.1]} 28. g4 {[%clk 0:00:18.7]} 28... Rc8 {[%clk 0:00:27.8]}
29. Rf2 {[%clk 0:00:16.9]} 29... Rc1+ {[%clk 0:00:27.2]} 30. Rf1 {[%clk
0:00:17.1]} 30... Rec8 {[%clk 0:00:26.9]} 31. h3 {[%clk 0:00:15.2]} 31... Rxf1+
{[%clk 0:00:25.5]} 32. Kxf1 {[%clk 0:00:14.9]} 32... Rc1+ {[%clk 0:00:26.1]} 33.
Kf2 {[%clk 0:00:14.1]} 33... Rc2+ {[%clk 0:00:26.3]} 34. Kg3 {[%clk 0:00:14.1]}
34... Rxb2 {[%clk 0:00:22.6]} 35. f6 {[%clk 0:00:12]} 35... Rg2+ {[%clk
0:00:19.5]} 36. Kf4 {[%clk 0:00:09.8]} 36... gxf6 {[%clk 0:00:18.7]} 37. exf6
{[%clk 0:00:09.4]} 37... Kc6 {[%clk 0:00:18.3]} 38. Ke5 {[%clk 0:00:08.8]} 38...
Kd7 {[%clk 0:00:17.3]} 39. Rc3 {[%clk 0:00:06.4]} 39... Re2 {[%clk 0:00:15.7]}
40. g5 {[%clk 0:00:05.8]} 40... Bg6+ {[%clk 0:00:13.5]} 41. Kf4 {[%clk
0:00:05.9]} 41... Re4+ {[%clk 0:00:13.2]} 42. Kg3 {[%clk 0:00:05.8]} 42... Rxd4
{[%clk 0:00:13]} 43. h4 {[%clk 0:00:05.6]} 43... Rd3+ {[%clk 0:00:12.9]} 44.
Rxd3 {[%clk 0:00:05.8]} 44... Bxd3 {[%clk 0:00:13.5]} 45. Kf4 {[%clk 0:00:06.3]}
45... Ke6 {[%clk 0:00:13.6]} 46. Ke3 {[%clk 0:00:05.9]} 46... Bg6 {[%clk
0:00:13]} 47. Kd4 {[%clk 0:00:05.8]} 47... b5 {[%clk 0:00:11.1]} 48. a3 {[%clk
0:00:06]} 48... a5 {[%clk 0:00:11]} 49. Kc5 {[%clk 0:00:05.3]} 49... Ke5 {[%clk
0:00:10.3]} 50. Kxb5 {[%clk 0:00:05.1]} 50... d4 {[%clk 0:00:10.6]} 51. Kxa5
{[%clk 0:00:03.6]} 51... d3 {[%clk 0:00:10.9]} 52. Kb4 {[%clk 0:00:03.7]} 52...
d2 {[%clk 0:00:11.1]} 0-1